Cogmind - Beta 14 @@@ ROGUE MODE // 2024.09.18 @ 15:51:20 Player: Dull Result: Destroyed by 0N-B25(R) with Subdweller Laser Performance ------------- Evolutions (0) 0 Regions Visited (2) 400 Robots Destroyed (37) 185 Value Destroyed (702) 702 Prototype IDs (11) 220 Alien Tech Used (0) 0 Bonus (0) 0 TOTAL SCORE: 1507 Bonus ------- None Cogmind --------- Core Integrity 0/250 Matter 290/300 Energy 250/250 System Corruption 0% Temperature Cool (6) Movement Treading (360) Ox2 Location -10/Subcaves Parts ------- > --- POWER (1) -------- Ion Engine > --- PROPULSION (2) --- Spiked Treads Spiked Treads > --- UTILITY (2) ------ Huge Storage Unit Core Shielding > --- WEAPON (2) ------- Subdweller Laser Subdweller Machine Gun > --- INVENTORY (25) --- Ion Engine Ion Engine Arachnoskeleton Subdweller Monowheel Core Shielding Tractor Beam Light Cannon Light Cannon SUBCON Basin (Full) Peak State ------------ > --- POWER ------------ Ion Engine > --- PROPULSION ------- Spiked Treads Spiked Treads > --- UTILITY ---------- Huge Storage Unit Core Shielding > --- WEAPON ----------- Subdweller Laser Subdweller Machine Gun > --- INVENTORY -------- Ion Engine Ion Engine Arachnoskeleton Subdweller Monowheel Core Shielding Tractor Beam Light Cannon Light Cannon SUBCON Basin [Rating: 31] Favorites ----------- Power Ion Engine Engine Ion Engine Propulsion Light Treads Treads Light Treads Leg Aluminum Leg Wheel Subdweller Monowheel Utility Huge Storage Unit Device Improved Terrain Scanner Storage Huge Storage Unit Protection Core Shielding Weapon Light Cannon Energy Gun Subdweller Laser Ballistic Gun Assault Rifle Ballistic Cannon Light Cannon Build | -11 -10 -10 ------- Run | Yrd Mat Sub Slots Evolved . | . . . Power . | . . . Propulsion . | . . . Utility . | . . . Weapon . | . . . Parts Attached 29 | 3 7 19 Power 4 | . . 4 Engine 4 | . . 4 Core . | . . . Reactor . | . . . Propulsion 12 | 2 2 8 Treads 4 | 2 . 2 Leg . | . . . Wheel 8 | . 2 6 Hover . | . . . Flight . | . . . Utility 5 | 1 3 1 Device 1 | 1 . . Storage 2 | . 2 . Processor . | . . . Hackware . | . . . Protection 2 | . 1 1 Artifact . | . . . Weapon 8 | . 2 6 Energy Gun 1 | . . 1 Energy Cannon . | . . . Ballistic Gun 3 | . . 3 Ballistic Cannon 4 | . 2 2 Launcher . | . . . Special Weapon . | . . . Impact Weapon . | . . . Slashing Weapon . | . . . Piercing Weapon . | . . . Special Melee Weapon . | . . . Unidentified Prototypes . | . . . Parts Lost 6 | . 1 5 Power 1 | . . 1 Propulsion 3 | . 1 2 Utility . | . . . Weapon 2 | . . 2 Highest Loss Streak 3 | . 1 3 To Critical Strikes . | . . . Average Slot Usage (%) 99 | . 100 99 Engine 13 | . 14 13 Treads 16 | . 21 4 Wheel 11 | . 6 23 Device 4 | . 6 . Storage 14 | . 14 14 Protection 9 | . 7 14 Energy Gun 4 | . . 13 Ballistic Gun 7 | . 5 13 Ballistic Cannon 16 | . 22 1 Peak Build Rating 31 | 9 10 31 Average Rating 11 | 6 9 16 On Entrance 8 | 6 9 10 Naked Turns . | . . . Heaviest Build 94 | 15 92 94 Greatest Support 40 | 40 40 40 Greatest Overweight (x) 9 | . 9 4 Average Overweight (x) 2 | . 2 2 Largest Inventory Capacity 25 | 8 25 25 Average Capacity 21 | 8 20 25 Most Carried 25 | 6 24 25 Average Carried 17 | 4 16 24 Final Capacity 25 | 8 25 25 Final Carried 25 | 4 24 25 Class Distribution -------------------- 76% | Mutant 23% | Scavenger-Mutant Dominant Class ---------------- Mutant | -10/Materials Scavenger-Mutant | -10/Subcaves Resources | -11 -10 -10 ----------- Run | Yrd Mat Sub Matter Collected 1294 | 344 471 479 Remotely . | . . . Salvage Created 1002 | 160 537 305 Parts 69 | 10 36 23 Haulers Intercepted 2 | . 2 . Recyclers Shooed 1 | 1 . . Parts Field Recycled . | . . . Retrieved Matter . | . . . Parts Self-Destructed 11 | . . 11 Prevented . | . . . Kills | -11 -10 -10 ------- Run | Yrd Mat Sub Combat Hostiles Destroyed 20 | . 12 8 Guns 11 | . 7 4 Cannons 9 | . 5 4 Classes Destroyed 10 | 3 5 2 Worker 2 | 1 1 . Builder 2 | . 2 . Tunneler 5 | 4 1 . Hauler 2 | . 2 . Recycler 2 | 1 1 . Operator 2 | . 2 . Turret 2 | . . 2 Swarmer 8 | . 6 2 Grunt 6 | . 6 . Subdweller 6 | . . 6 Best Kill Streak 4 | 4 3 4 Combat Bots Only 3 | . 3 2 Max Kills in Single Turn 1 | 1 1 1 Gunslinging . | . . . Exploded . | . . . Melee . | . . . Uniques/NPCs Destroyed . | . . . Combat | -11 -10 -10 -------- Run | Yrd Mat Sub Hostile Shots Fired 145 | . 42 103 Missed 61 | . 15 46 Damage Taken 1349 | . 350 999 Core 251 | . 27 224 Absorbed by Shields . | . . . Redirected to Shielding 50 | . 2 48 Core Remaining (%) 100 | 100 . . Volleys Fired 116 | 19 55 42 Largest 2 | 2 2 2 Hottest 90 | 40 70 90 Shots Fired 232 | 38 110 84 Gun 136 | 38 38 60 Cannon 96 | . 72 24 Launcher . | . . . Special . | . . . Kinetic 202 | 38 110 54 Thermal 30 | . . 30 Explosive . | . . . Electromagnetic . | . . . Robot Hit Streak 21 | 4 9 21 Robot Miss Streak 9 | 5 9 4 Penetration Max . | . . . Secondary Targets 2 | . 1 1 Max Gunslinging Chain 1 | . 1 1 Shots Hit Robots 112 | 20 54 38 Core Hits 50 | 7 25 18 Critical Kills . | . . . Critical Parts Destroyed . | . . . Critical Strikes 5 | . 2 3 Destroy 1 | . . 1 Blast 4 | . 2 2 Melee Attacks . | . . . Impact . | . . . Slashing . | . . . Piercing . | . . . Sneak Attacks . | . . . Combat Hostiles . | . . . Follow-up Attacks . | . . . Damage Inflicted 1902 | 293 851 758 Guns 1091 | 293 317 481 Cannons 811 | . 534 277 Explosions . | . . . Melee . | . . . Ramming . | . . . Kinetic 1638 | 293 851 494 Thermal 264 | . . 264 Explosive . | . . . Electromagnetic . | . . . Impact . | . . . Slashing . | . . . Piercing . | . . . Highest Corruption . | . . . Average Corruption . | . . . Corruption Purged . | . . . Corruption Blocked . | . . . Overload Shots . | . . . Overflow Damage 6 | . 6 . Projectiles 6 | . 6 . Explosions . | . . . Melee . | . . . Knockbacks 7 | . 5 2 Impact . | . . . Kinetic 7 | . 5 2 Secondary . | . . . Self-Inflicted Damage . | . . . Shots . | . . . Rammed . | . . . Targets Rammed . | . . . Kicked . | . . . Crushed . | . . . Highest Temperature 81 | . 81 10 Average Temperature 16 | . 21 3 Received Heat Transfer 315 | . 63 252 Siege Activations . | . . . Robots Corrupted . | . . . Combat Hostiles . | . . . Parts Fried . | . . . Impact Corruptions . | . . . Robots Melted . | . . . Combat Hostiles . | . . . Parts Melted 1 | . . 1 Heat Transferred 325 | . . 325 Parts Sabotaged . | . . . Parts Stolen . | . . . Parts Stripped . | . . . Power Chain Reactions . | . . . Alert | -11 -10 -10 ------- Run | Yrd Mat Sub Peak Influence 257 | 30 257 . Initial 19 | . 19 . Average 52 | 11 55 . Maximum Alert Level 1 | . 1 . Low Security (%) 98 | 100 98 . Level 1 1 | . 1 . Level 2 . | . . . Level 3 . | . . . Level 4 . | . . . Level 5 . | . . . High Security . | . . . Max Security . | . . . Squads Dispatched 2 | . 2 . Investigation . | . . . Extermination . | . . . Reinforcement 2 | . 2 . Assault . | . . . Garrison . | . . . Intercept . | . . . Searches Triggered . | . . . Construction Impeded . | . . . Haulers Reinforced . | . . . Active Scanning Responses . | . . . Cargo Convoy Interrupts . | . . . Stealth | -11 -10 -10 --------- Run | Yrd Mat Sub Distress Signals 2 | . 2 . Communications Jammed . | . . . Distress Signals . | . . . Times Spotted 45 | . 32 13 Peak Tracking Total 6 | . 5 6 Tactical Retreats 1 | . 1 . Traps | -11 -10 -10 ------- Run | Yrd Mat Sub Traps Triggered 3 | . 1 2 Indirectly . | . . . Trap Hack Attempts . | . . . Triggered . | . . . Disarmed . | . . . Reprogrammed . | . . . Reused . | . . . Traps Extracted . | . . . Installed . | . . . Triggered . | . . . Machines | -11 -10 -10 ---------- Run | Yrd Mat Sub Machines Disabled 5 | . 2 3 Max in Single Turn 1 | . 1 1 Machines Repaired . | . . . Machines Dismantled . | . . . Machines Sabotaged . | . . . Overloaded Fab Kills . | . . . Hacking | -11 -10 -10 --------- Run | Yrd Mat Sub Machines Accessed 11 | . 8 3 Terminals 6 | . 6 . Fabricators . | . . . Repair Stations . | . . . Recycling Units 2 | . 2 . Scanalyzers . | . . . Garrison Access . | . . . Total Hacks 28 | . 24 4 Successful 18 | . 14 4 Failed 9 | . 9 . Catastrophic 1 | . 1 . Database Lockouts 1 | . 1 . Manual 25 | . 25 . Terminals 16 | . 16 . Fabricators . | . . . Repair Stations . | . . . Recycling Units 8 | . 8 . Scanalyzers . | . . . Garrison Access . | . . . Terminal Hacks 7 | . 3 4 Record 1 | . . 1 Robot Analysis 2 | . 2 . Open Door 1 | . . 1 Disarm Traps 1 | . 1 . Derelict Proto ID Bank 1 | . . 1 Release Object 1 | . . 1 Fabricator Hacks . | . . . Repair Station Hacks . | . . . Recycling Unit Hacks . | . . . Scanalyzer . | . . . Garrison Access Hacks . | . . . Unauthorized Hacks 11 | . 11 . Terminals 6 | . 6 . Botnet 6 | . 6 . Fabricators . | . . . Repair Stations . | . . . Recycling Units 5 | . 5 . Monitor 1 | . 1 . Reject 2 | . 2 . Mask 2 | . 2 . Scanalyzers . | . . . Garrison Access . | . . . Data Cores Recovered . | . . . Used . | . . . Hacking Detections 7 | . 7 . Full Trace Events . | . . . Feedback Events . | . . . Feedback Blocked . | . . . Robot Schematics Acquired . | . . . Robots Built . | . . . Authchips . | . . . Time . | . . . Total Robot Build Rating . | . . . Part Schematics Acquired . | . . . Parts Built . | . . . Authchips . | . . . Time . | . . . Total Part Build Rating . | . . . Parts Repaired . | . . . Time . | . . . Parts Recycled . | . . . Recycled Matter . | . . . Retrieved Matter . | . . . Retrieved Components . | . . . Parts Scanalyzed . | . . . Part Schematics Acquired . | . . . Parts Damaged . | . . . Bothacking | -11 -10 -10 ------------ Run | Yrd Mat Sub Used RIF Installer . | . . . Robots Hacked . | . . . Non-combat . | . . . Combat . | . . . Robot Hacks Applied . | . . . Relay Couplers Released . | . . . Fabnet Peak Effective % . | . . . Robots Rewired . | . . . Allies Hacked . | . . . Hacks Repelled . | . . . Allies | -11 -10 -10 -------- Run | Yrd Mat Sub Total Allies . | . . . Largest Group . | . . . Highest-Rated Group . | . . . Highest-Rated Ally . | . . . Total Orders . | . . . Ally Attacks . | . . . Total Damage . | . . . Kills . | . . . Allies Corrupted . | . . . Allies Melted . | . . . Intel | -11 -10 -10 ------- Run | Yrd Mat Sub Robot Analysis Total 2 | . 2 . Derelict Logs Recovered 1 | . . 1 Drone Launches . | . . . Drone Recoveries . | . . . Exploration | -11 -10 -10 ------------- Run | Yrd Mat Sub Turns Passed 3574 | 156 2359 1059 Spaces Moved 1398 | 66 824 508 Core . | . . . Treads 693 | 36 619 38 Legs 30 | 30 . . Wheels 675 | . 205 470 Hover . | . . . Flight . | . . . Fastest Speed 119 | 120 135 119 Average Speed 185 | 141 212 145 Slowest Speed 360 | 160 320 360 Overloaded Moves . | . . . Propulsion Burnouts . | . . . Robots Hopped . | . . . Cave-ins Triggered . | . . . Exploration Rate (%) 45 | 4 97 36 Regions Visited 2 Branch Regions 1 Pre-discovered Areas . | . . . Known Exits Taken . | . . . Unknown Exits Taken 2 | 1 1 . Scrap Searched 3 | . . 3 Spaces Dug . | . . . Terrain Destroyed . | . . . Melee . | . . . Projectile . | . . . AOE . | . . . Terrain Rammed . | . . . Walls Destroyed . | . . . Machines Disabled . | . . . Actions | -11 -10 -10 --------- Run | Yrd Mat Sub Total 2167 | 91 1320 756 Wait 554 | . 402 152 Move 1396 | 65 823 508 Hop . | . . . Pick Up 36 | 1 26 9 Fast Attach 2 | 1 . 1 Attach 7 | . 1 6 Detach 1 | . . 1 Swap 20 | 2 6 12 Drop 35 | 3 7 25 Fire 116 | 19 55 42 Melee . | . . . Ram . | . . . Kick . | . . . Crush . | . . . Escape Stasis . | . . . Rewire . | . . . Trap . | . . . Miscellaneous . | . . . Route ------- -11/Scrapyard -10/Materials (discovered 5 exits: [*Mat x3] / [*Min] / *Sub) -10/Subcaves (discovered 1 exit: [*Rec]) History --------- Turn | Location | Event 1 | -11/Scrapyard | Discovered new exit (range 3) 157 | -11/Scrapyard | Entered Materials 310 | -10/Materials | Build established: Mutant 766 | -10/Materials | Discovered new exit (range 13) 990 | -10/Materials | Central database locked down 1287 | -10/Materials | Discovered new exit (range 7) 1647 | -10/Materials | Discovered new exit (range 4) 1847 | -10/Materials | Discovered new exit (range 10) 2487 | -10/Materials | Discovered new exit (range 8) 2516 | -10/Materials | Entered Subcaves 2518 | -10/Subcaves | Discovered new exit (range 13) 2595 | -10/Subcaves | Lost 3 parts (1n2w) 2727 | -10/Subcaves | Core integrity fell below 50% 2826 | -10/Subcaves | Visited 4L-MR0's lab 2847 | -10/Subcaves | Found Arachnoskeleton 2927 | -10/Subcaves | Learned location of 1 exit from Materials 3023 | -10/Subcaves | Build established: Scavenger-Mutant 3111 | -10/Subcaves | Shifting Twisted Machinery released Spk. Treads 3127 | -10/Subcaves | Shifting Twisted Machinery released Sub. Machine Gun 3467 | -10/Subcaves | Found SUBCON Basin 3562 | -10/Subcaves | Core integrity fell below 20% 3575 | -10/Subcaves | Destroyed by 0N-B25(R) with Subdweller Laser Last Messages --------------- Delivery behind schedule, handle with care! 03409_ Dropped Lgt. Cannon. 03410_ Dropped Mining Laser. 03412_ Dropped Core Shielding. 03412_ Dropped Imp. Terrain Scanner. 03413_ Dropped Imp. Heat Sink. 03413_ Dropped Sub. Monowheel. 03414_ Dropped Wheel. 03414_ Dropped Sub. Monowheel. 03417_ Dropped Ion Engine. 03421_ Dropped Sub. Machine Gun. 03422_ Dropped Lgt. Cannon. 03422_ Dropped Hacking Suite. 03422_ Hacking Suite crushed and broken. 03441_ Dropped Hcp. Matter Pod. 03445_ Extracted 50 matter. 03448_ Dropped Ion Engine. 03467_ Acquired SUBCON Basin. 03573_ IS-5UH(R) suffers critical hit (Destroy). 03573_ Destroyed Scrap Shield. Map ----- +----------------------------------------------------+ | | | | | | | | | | | ?????????????????????????????????????????????????? | | ?????????????????????????????????????????????????? | | ?????????????????????????????????????????????????? | | ?????????????????????????????????????????????????? | | ????????????????????########?????????????????????? | | ????????????????????#""""""#?????????????????????? | | ????????????????????#""""X"#?????????????????????? | | ????????????????????#=!] ="#?????????????????????? | | ????????????????????#=!|!*"#?????????????????????? | | ???######???????????#"*""""#?????????????????????? | | ??##"|! #???????????##[#####?????????????????????? | | ??#|*="##???????????#"]""#???????????????????????? | | ??# ####????????????#X!* ##??????????????????????? | | ??#" #???????????### ##?????????????????????? | | ??### ###?####?##### #### ###???????????????????? | | ??##" " ### ### # # ## ## ##??????????????????? | | ?## ### #??????????????????? | | ## ##?????????????????? | | # # # ## ;#?????????????????? | | #### ## ### # RR ###???????????????? | | ##??# @;# #???????????????? | | ##???# ;### ##???????????????? | | ###????# # ###?# #????????????????? | | ##??????# ###### ##???## ##???????????????? | | #???????# #????# ##?????## #???????????????? | | #???????# #????# #???????# #??????????????? | | #??????# ????## #???????# #??????????????? | | ????? ?????## ##???????# #??????????????? | | #??## ?????###????????" #??????????????? | | ##???### ????????????????" ##??????????????? | | ##??????? ????????????????# ???????????????? | | ????????# ?????????????????# ???????????????? | | ??????????????????????????# "???????????????? | | #?????????????????????????? " ??????????????? | | ?????????????????????????? ""??????????????? | | ??????????????????????????# " ??????????????? | | ??????????????????????????????? "???????????????? | | ???????????????????????????????? "???????????????? | | ????????????????????????????????#????????????????? | | ?????????????????????????????????????????????????? | | ?????????????????????????????????????????????????? | | ?????????????????????????????????????????????????? | | ?????????????????????????????????????????????????? | | ?????????????????????????????????????????????????? | | ?????????????????????????????????????????????????? | +----------------------------------------------------+ Best States ------------- Heat Dissipation 25 Energy Generation 10 Energy Capacity 250 Matter Stores 300 Matter Capacity 300 Sight Range 16 Terrain Scan Range 16 Terrain Scan Density 10 Core Shielding 20 Evasion (%) 55 Recoil Reduction 2 Item Schematics ----------------- None Robot Schematics ------------------ None Fabricated ------------ Nothing Alien Tech Used ----------------- None Achievements -------------- None Challenges ------------ None Game ------ Seed HellfireSpectralChainsword Manual? 0 Play Time 00:18:38 Cumulative 109.8 hours Start 2024.09.18 @ 15:32:40 End 2024.09.18 @ 15:51:20 Sessions 1 Manual Loads 0 Difficulty Rogue Special Mode None Game No. 153 Rogue 153 Adventurer 0 Explorer 0 Win Type - Total 1 Types 1/0/0/0/0/0/0/0/0 Lore% 22 Gallery% 56 Achievement% 44 Wizard Run 0 Options --------- Layout 0 ASCII 0 Keyboard 0 Movement Mouse Keybinds 1 Fullscreen 1 Font 18/TerminusBold Map View 76x50 Zoom Use 0% Tactical HUD 1 Map Filters NONE Filters NONE Steam 1 RUN: 393b0398-c69a-4ee6-b337-29727426e353